bitfinex-derivatives/quotes_SOLF0:USTF0_20250124
["timestamp","ask_amount","ask_price","bid_price","bid_amount"]
[1737733617063,14.5667553,262.39,262.16,14.5667553]
[1737733617361,3.8115,262.33,262.19,3.8134]
[1737733617562,14.5667553,262.39,262.25,0.02636786]
[1737733618565,14.5667553,262.47,262.25,0.02636786]
[1737733618863,1.2538,262.42,262.21,14.5667553]
[1737733619259,11.4118,262.85,262.33,0.02697509]
[1737733619463,0.65624309,262.59,262.33,0.02697509]
[1737733619666,3.23714309,262.59,262.36,3.8109]
[1737733619965,2.5809,262.59,262.43,0.02498057]
[1737733620168,3.8093,262.48,262.43,0.02498057]
[1737733620465,5.4433,262.58,262.37,14.5667553]
[1737733620767,5.4433,262.58,262.43,0.02448507]
[1737733621370,3.808,262.57,262.43,3.83428507]
[1737733621564,1.2833,262.58,262.43,0.02448507]
[1737733621763,1.2833,262.58,262.45,23.53960921]
[1737733622062,27.67960921,262.68,262.45,23.53960921]
[1737733622367,2.5652,262.67,262.45,23.53960921]
[1737733622568,3.857,262.67,262.49,0.02565619]
[1737733622959,3.8075,262.6,262.47,3.8093]
[1737733623161,3.857,262.67,262.45,23.53960921]
[1737733623369,3.857,262.67,262.55,0.02637959]
[1737733625269,3.808,262.57,262.55,0.02637959]
[1737733625471,3.857,262.67,262.55,0.02637959]
[1737733626368,2.5652,262.67,262.55,0.02637959]
[1737733626567,1.2687,262.76,262.55,23.5659888]
[1737733626766,3.8066,262.67,262.57,3.8078]
[1737733626962,1.2687,262.76,262.55,23.53960921]
[1737733627168,23.53960921,262.73,262.51,1.3043]
[1737733627364,23.53960921,262.73,262.59,0.02605532]
[1737733627862,23.53960921,262.63,262.39,23.53960921]
[1737733628063,3.8086,262.53,262.43,3.8099]
[1737733628673,3.8091,262.49,262.39,27.35000921]
[1737733628870,3.8091,262.49,262.39,3.8104]
[1737733629068,0.02709938,262.51,262.45,0.02810625]
[1737733629564,3.8075,262.6,262.51,3.8087]
[1737733629773,0.02709938,262.51,262.49,23.53960921]
[1737733629973,24.82870921,262.73,262.49,23.53960921]
[1737733630174,24.82870921,262.73,262.5,1.34]
[1737733630672,23.53960921,262.63,262.44,23.53960921]
[1737733630975,1.275,262.62,262.39,23.53960921]
[1737733631168,1.275,262.62,262.51,0.02616784]
[1737733631569,3.8077,262.59,262.51,0.02616784]
[1737733631770,23.53960921,262.68,262.51,0.02616784]
[1737733632273,5.4737,262.71,262.49,23.53960921]
[1737733632471,24.82870921,262.73,262.57,0.02790925]
[1737733632675,1.2891,262.73,262.57,0.02790925]
[1737733632876,1.2891,262.73,262.54,23.53960921]
[1737733633173,1.3137,262.72,262.62,0.02560412]
[1737733633569,1.3141,262.71,262.62,6.27560412]
[1737733633775,23.53960921,262.79,262.62,6.27560412]
[1737733633965,3.8061,262.7,262.62,6.27560412]
[1737733634172,1.2702,262.72,262.62,6.25]
[1737733634476,1.2702,262.72,262.63,0.02489336]
[1737733634774,1.2702,262.72,262.62,6.25]
[1737733634974,1.3225,262.71,262.62,6.25]
[1737733635472,1.2702,262.72,262.62,6.25]
[1737733635676,1.3225,262.82,262.65,3.8066]
[1737733635873,1.3225,262.82,262.62,6.25]
[1737733636174,0.02489336,262.7,262.64,0.02908183]
[1737733636375,0.02489336,262.7,262.62,6.25]
[1737733636577,1.3225,262.82,262.64,0.02426055]
[1737733636874,0.02489336,262.69,262.62,13.93]
[1737733637075,23.53960921,262.8,262.7,0.02487013]
[1737733637271,23.53960921,262.8,262.62,13.93]
[1737733637476,0.02489336,262.78,262.62,17.7371]
[1737733637677,0.02489336,262.78,262.68,0.02812551]
[1737733637879,3.8061,262.7,262.68,0.02812551]
[1737733638777,3.8061,262.7,262.68,2.551e-05]
[1737733639073,27.34570921,262.7,262.68,2.551e-05]
[1737733639279,3.8061,262.7,262.68,2.551e-05]
[1737733639578,1.2191,262.69,262.68,2.551e-05]
[1737733642078,2.4309,262.69,262.68,2.551e-05]
[1737733642776,1.2191,262.69,262.68,2.551e-05]
[1737733643280,3.807,262.63,262.62,1.35148051]
[1737733644084,3.808,262.57,262.43,14.48724303]
[1737733644288,14.48724303,262.61,262.38,14.48724303]
[1737733644481,0.02462457,262.53,262.47,0.02667174]
[1737733645882,0.02462457,262.53,262.51,3.8087]
[1737733647587,5.3191,262.69,262.48,14.48724303]
[1737733647782,1.2191,262.69,262.49,1.2152]
[1737733648084,1.2191,262.69,262.58,3.8077]
[1737733648485,1.2191,262.69,262.49,1.2152]
[1737733648687,1.2191,262.69,262.53,3.8084]
[1737733648886,0.02663514,262.62,262.56,0.02744727]
[1737733649882,0.02663514,262.62,262.58,3.8078]
[1737733650382,0.02663514,262.62,262.56,0.02744727]
[1737733651383,3.8077,262.59,262.56,0.02744727]
[1737733651583,0.02663514,262.62,262.56,0.02744727]
[1737733652786,3.8074,262.61,262.56,0.02744727]
[1737733652983,0.02663514,262.62,262.56,0.02744727]
[1737733654290,0.02663514,262.62,262.57,3.8078]
[1737733654489,0.02663514,262.62,262.56,0.02744727]
[1737733655982,0.02663514,262.62,262.57,14.48724303]
[1737733656188,3.8061,262.7,262.65,3.8066]
[1737733656383,1.2688,262.76,262.58,1.2095]
[1737733656583,1.3247,262.81,262.62,14.48724303]
[1737733656789,3.8056,262.74,262.62,20.46724303]
[1737733656981,1.3247,262.81,262.62,20.46724303]
[1737733657393,3.8049,262.78,262.72,3.8057]
[1737733657892,1.2363,262.84,262.71,3.8058]
[1737733658186,1.2363,262.84,262.62,20.46724303]
[1737733658387,1.2363,262.84,262.75,0.02898665]
[1737733659693,3.805,262.77,262.75,0.02898665]
[1737733659992,1.2363,262.84,262.62,20.46724303]
[1737733659993,14.48724303,262.81,262.62,5.98]
[1737733660187,3.806,262.7,262.62,5.98]
[1737733660690,14.48724303,262.81,262.62,5.98]
[1737733660881,0.0293059,262.69,262.63,0.02703079]
[1737733661086,0.0293059,262.69,262.62,5.98]
[1737733661284,0.02811894,262.68,262.63,0.02693148]
[1737733661481,14.48724303,262.81,262.62,5.98]
[1737733661687,0.02727718,262.68,262.63,0.02695491]
[1737733661886,14.48724303,262.81,262.62,5.98]
[1737733662083,0.02556745,262.68,262.63,3.83589529]
[1737733662290,14.48724303,262.81,262.62,5.98]
[1737733662487,0.02491399,262.68,262.63,0.02687118]
[1737733662692,3.8051,262.77,262.62,5.98]
[1737733662894,0.02405247,262.68,262.63,1.28645879]
[1737733663490,0.02405247,262.68,262.67,3.8064]
[1737733664394,14.48724303,262.86,262.63,1.28645879]
[1737733664589,14.48724303,262.86,262.64,1.3126]
[1737733664888,14.48724303,262.86,262.69,3.8061]
[1737733665092,14.48724303,262.86,262.64,1.3126]
[1737733665294,3.8056,262.73,262.65,3.8066]
[1737733665493,14.48724303,262.81,262.72,0.02571906]
[1737733665691,14.48724303,262.81,262.63,1.2603]
[1737733665885,3.8053,262.75,262.74,0.02686428]
[1737733666392,14.48724303,262.81,262.74,0.02686428]
[1737733666593,3.8052,262.76,262.74,0.02686428]
[1737733666994,14.48724303,262.86,262.74,0.02686428]
[1737733667690,3.8047,262.8,262.74,0.02686428]
[1737733667886,14.48724303,262.86,262.74,0.02686428]
[1737733668894,3.8053,262.75,262.74,0.02686428]
[1737733669096,14.48724303,262.86,262.74,0.02686428]
[1737733669890,3.805,262.77,262.74,0.02686428]
[1737733670099,14.48724303,262.86,262.74,0.02686428]
[1737733671089,3.86,262.85,262.74,0.02686428]
[1737733671590,3.8053,262.75,262.74,0.02686428]
[1737733672795,3.805,262.77,262.74,0.02686428]
[1737733672995,14.48724303,262.81,262.74,0.02686428]
[1737733673290,3.8053,262.75,262.74,0.02686428]
[1737733673497,3.8053,262.75,262.74,6.428e-05]
[1737733674693,3.806,262.71,262.59,1.2729]
[1737733674893,14.48724303,262.71,262.58,9.35]
[1737733675288,14.48724303,262.66,262.58,9.35]
[1737733675489,3.84,262.65,262.58,9.35]
[1737733675893,0.02513429,262.64,262.59,0.0283317]
[1737733676294,5.1148,262.75,262.65,3.8066]
[1737733676595,1.3094,262.75,262.59,3.8061]
[1737733677391,3.8062,262.69,262.59,7.6137]
[1737733677598,3.8062,262.69,262.64,0.02471074]
[1737733677798,1.3094,262.75,262.64,0.02471074]
[1737733678092,3.8067,262.66,262.64,0.02471074]
[1737733679393,18.30724303,262.71,262.64,0.02471074]
[1737733679597,3.8064,262.68,262.64,0.02471074]
[1737733679798,18.30724303,262.71,262.64,0.02471074]
[1737733680195,3.8066,262.66,262.64,0.02471074]
[1737733680500,18.30724303,262.71,262.58,9.35]
[1737733681199,3.82,262.71,262.58,9.35]
[1737733681389,14.48724303,262.71,262.58,9.35]
[1737733681593,0.02643107,262.67,262.58,9.35]
[1737733681791,0.02643107,262.67,262.62,0.02447872]
[1737733682300,3.807,262.63,262.62,0.02447872]
[1737733683103,0.02643107,262.67,262.62,0.02447872]
[1737733683293,3.8069,262.64,262.62,0.02447872]
[1737733683696,0.02643107,262.67,262.62,0.02447872]
[1737733685001,3.807,262.63,262.62,0.02447872]
[1737733686408,14.48724303,262.66,262.58,9.35]
[1737733686900,14.4924054,262.6,262.4,3.926]
[1737733687097,3.8089,262.5,262.4,3.926]
[1737733687503,0.02605702,262.48,262.42,0.02410924]
[1737733687906,3.83525702,262.48,262.42,0.02410924]
[1737733688199,0.02605702,262.48,262.42,7.50410924]
[1737733688407,14.4924054,262.45,262.42,7.50410924]
[1737733689100,0.02605702,262.48,262.42,7.50410924]
[1737733692307,0.02605702,262.48,262.43,3.8099]
[1737733692711,0.02605702,262.48,262.42,7.50410924]
[1737733693111,1.2187,262.59,262.42,7.50410924]
[1737733693414,14.49610952,262.43,262.15,14.49610952]
[1737733693610,18.59610952,262.43,262.22,2.5693]
[1737733693811,14.49610952,262.37,262.22,2.5693]
[1737733694106,3.811,262.36,262.22,2.5693]
[1737733694407,14.49610952,262.29,262.26,0.02645161]
[1737733694604,14.49610952,262.29,262.22,10.3678]
[1737733695213,14.49610952,262.24,262.22,9.09]
[1737733695910,0.02630191,262.26,262.22,9.09]
[1737733696310,14.49610952,262.34,262.22,9.09]
[1737733696510,14.49610952,262.39,262.26,3.8124]
[1737733696705,4.08,262.48,262.23,2.4489]
[1737733697107,4.08,262.48,262.25,14.49610952]
[1737733697509,0.02515567,262.39,262.38,3.8107]
[1737733697715,0.02515567,262.39,262.25,14.49610952]
[1737733697716,3.8089,262.51,262.25,14.49610952]
[1737733698014,14.49610952,262.52,262.25,14.49610952]
[1737733698210,14.49610952,262.42,262.23,1.2313]
[1737733698407,14.49610952,262.37,262.23,1.2313]
[1737733698606,3.8115,262.32,262.23,1.2313]
[1737733698806,0.02437322,262.33,262.27,0.02878401]
[1737733699712,3.8116,262.32,262.27,0.02878401]
[1737733699912,14.49610952,262.32,262.27,0.02878401]
[1737733700109,14.49610952,262.32,262.22,9.09]
[1737733700414,14.49610952,262.26,262.22,9.09]
[1737733700613,14.49610952,262.34,262.22,9.09]
[1737733701314,0.0256462,262.31,262.25,0.02497511]
[1737733704021,4.08,262.54,262.25,0.02497511]
[1737733704215,6.6069,262.54,262.22,9.09]
[1737733704616,3.8098,262.44,262.35,3.811]
[1737733704812,6.6069,262.54,262.35,3.811]
[1737733705017,6.6069,262.54,262.22,9.09]
[1737733705219,0.02892674,262.44,262.38,0.02847814]
[1737733705418,5.3139,262.54,262.23,14.49610952]
[1737733705724,0.02834218,262.44,262.4,3.8103]
[1737733705920,23.56603019,262.49,262.26,1.3012]
[1737733706120,0.0282691,262.37,262.32,0.02820762]
[1737733706419,23.56603019,262.49,262.26,1.3012]
[1737733707023,3.8097,262.45,262.39,3.8105]
[1737733707222,23.56603019,262.54,262.3,23.56603019]
[1737733707526,24.88543019,262.59,262.39,0.02488612]
[1737733707719,23.56603019,262.59,262.35,23.56603019]
[1737733707915,0.0816,262.65,262.4,23.56603019]
[1737733707916,23.56603019,262.64,262.4,23.56603019]
[1737733708116,23.56603019,262.64,262.46,0.02865977]
[1737733708320,23.56603019,262.64,262.41,1.2307]
[1737733708524,23.56603019,262.64,262.52,0.0291495]
[1737733708924,27.37293019,262.64,262.56,3.808]
[1737733709120,23.56603019,262.64,262.52,0.0291495]
[1737733709318,23.56603019,262.69,262.45,23.56603019]
[1737733709524,3.8064,262.68,262.59,3.8076]
[1737733709821,0.1099,262.74,262.41,1.2307]
[1737733709822,23.56603019,262.74,262.5,23.56603019]
[1737733710124,3.8055,262.74,262.65,3.8067]
[1737733710327,23.56603019,262.79,262.61,0.02849463]
[1737733710627,1.3194,262.85,262.67,0.02806331]
[1737733710817,23.56603019,262.79,262.67,0.02806331]
[1737733711021,23.56603019,262.79,262.57,1.2928]
[1737733711323,23.56603019,262.79,262.7,0.02440228]
[1737733712325,23.56603019,262.74,262.7,0.02440228]
[1737733713226,3.8058,262.72,262.7,0.02440228]
[1737733713426,23.56603019,262.74,262.58,1.3164]
[1737733713627,1.306,262.71,262.58,1.3164]
[1737733714326,23.56603019,262.74,262.58,1.3164]
[1737733714626,27.37083019,262.79,262.63,0.02440262]
[1737733714923,0.02434243,262.69,262.58,1.3164]
[1737733715124,0.02434243,262.69,262.68,0.02864779]
[1737733715426,0.02434243,262.69,262.65,3.8067]
[1737733715623,0.02434243,262.69,262.66,0.02541044]
[1737733716827,3.83054243,262.69,262.66,9.27541044]
[1737733717128,0.02434243,262.69,262.66,9.27541044]
[1737733718125,3.8063,262.68,262.66,9.27541044]
[1737733718325,0.02434243,262.69,262.66,9.27541044]
[1737733720826,23.56603019,262.79,262.66,9.27541044]
[1737733721127,23.56603019,262.74,262.66,9.27541044]
[1737733721333,23.56603019,262.74,262.66,9.25]
[1737733721733,23.56603019,262.79,262.66,9.25]
[1737733722231,27.37083019,262.79,262.7,3.806]
[1737733722432,23.56603019,262.84,262.67,1.30911834]
[1737733722634,3.8045,262.81,262.74,3.8054]
[1737733722834,23.56603019,262.84,262.73,0.02836141]
[1737733723535,23.56603019,262.84,262.73,3.83386141]
[1737733724135,3.8054,262.75,262.73,0.02836141]
[1737733724437,23.56603019,262.84,262.73,0.02836141]
[1737733724737,1.306,262.85,262.73,0.02836141]
[1737733726430,23.56603019,262.86,262.73,3.83386141]
[1737733727040,3.8043,262.83,262.73,3.83386141]
[1737733727237,23.56603019,262.86,262.75,3.8053]
[1737733727437,23.56603019,262.86,262.73,0.02836141]
[1737733727637,14.45723511,262.91,262.73,0.02836141]
[1737733728038,14.45723511,262.91,262.67,14.45723511]
[1737733728239,14.45723511,262.91,262.79,0.0242268]
[1737733729532,3.8035,262.88,262.81,3.8044]
[1737733730043,2.5348,262.94,262.79,0.0242268]
[1737733730338,3.803,262.91,262.83,3.804]
[1737733730538,1.2746,262.94,262.79,0.0242268]
[1737733730744,1.2746,262.94,262.84,0.02571503]
[1737733730944,3.88,263.0,262.84,0.02571503]
[1737733731247,1.295,262.97,262.84,0.02571503]
[1737733731544,3.8027,262.93,262.85,3.8038]
[1737733731746,1.295,262.97,262.84,0.02571503]
[1737733734243,14.45723511,262.94,262.84,0.02571503]
[1737733734647,14.45723511,262.89,262.73,2.5444]
[1737733734944,1.2896,262.88,262.73,2.5444]
[1737733735144,14.45723511,262.94,262.73,2.5444]
[1737733735647,3.8033,262.89,262.73,2.5444]
[1737733735847,0.02430746,262.86,262.81,0.02451171]
[1737733736145,0.02430746,262.86,262.81,3.82891171]
[1737733736342,0.02430746,262.86,262.81,0.02451171]
[1737733736947,14.45723511,262.84,262.68,0.23181]
[1737733737441,3.8045,262.81,262.74,3.8054]
[1737733737647,3.8045,262.81,262.68,0.23181]
[1737733738246,0.02686691,262.77,262.72,0.02862589]
[1737733738545,0.02686691,262.77,262.73,3.8055]
[1737733739346,0.02686691,262.77,262.74,3.8054]
[1737733739546,0.02686691,262.77,262.72,0.02862589]
[1737733739743,3.8052,262.76,262.72,0.02862589]
[1737733740047,0.02686691,262.77,262.72,0.02862589]
[1737733740247,3.83196691,262.77,262.72,0.02862589]
[1737733740550,0.02686691,262.77,262.72,0.02862589]
[1737733741250,3.8056,262.73,262.72,0.02862589]
[1737733741642,0.02686691,262.77,262.72,0.02862589]
[1737733741846,0.02686691,262.77,262.75,3.8052]
[1737733742046,14.45723511,262.89,262.75,7.52]
[1737733742548,14.45723511,262.89,262.77,3.8049]
[1737733742746,14.45723511,262.89,262.75,7.52]
[1737733743352,3.82921585,262.85,262.79,0.0276027]
[1737733743546,0.02531585,262.85,262.79,0.0276027]
[1737733744451,0.02531585,262.85,262.79,3.8322027]
[1737733744653,0.02531585,262.85,262.79,0.0276027]
[1737733747053,0.02531585,262.85,262.8,3.8045]
[1737733747253,0.02531585,262.85,262.79,0.0276027]
[1737733747453,0.02531585,262.85,262.81,3.8044]
[1737733748149,0.02531585,262.85,262.79,3.8323027]
[1737733748349,14.45723511,262.84,262.79,0.0276027]
[1737733748749,14.45723511,262.84,262.75,7.52]
[1737733748944,1.2552,262.83,262.75,7.52]
[1737733749551,3.8046,262.8,262.75,7.52]
[1737733749749,1.2552,262.83,262.75,7.52]
[1737733749951,1.2552,262.83,262.75,7.54620715]
[1737733750954,3.805,262.77,262.75,7.54620715]
[1737733751152,14.45723511,262.78,262.68,0.23181]
[1737733751356,3.8062,262.69,262.6,3.8074]
[1737733751557,14.45723511,262.73,262.6,3.8074]
[1737733751757,14.45723511,262.73,262.58,1.2268]
[1737733751955,14.45723511,262.78,262.58,1.2268]
[1737733752556,0.02889195,262.71,262.65,0.02698053]
[1737733753258,0.02889195,262.71,262.69,3.8061]
[1737733755954,0.02889195,262.71,262.67,3.8064]
[1737733756158,0.02889195,262.71,262.65,0.02698053]
[1737733757058,0.02889195,262.71,262.69,3.8061]
[1737733757956,1.2552,262.83,262.66,2.5344]
[1737733759055,0.02901747,262.77,262.72,3.83398652]
[1737733759759,0.02901747,262.77,262.73,3.8055]
[1737733759962,0.02901747,262.77,262.72,0.02828652]
[1737733760360,0.02901747,262.77,262.75,3.8052]
[1737733760563,0.02901747,262.77,262.72,0.02828652]
[1737733761257,0.02901747,262.77,262.76,3.8051]
[1737733763058,0.02901747,262.77,262.72,0.02828652]
[1737733764960,0.02901747,262.77,262.73,3.8054]
[1737733765156,14.45723511,262.94,262.72,0.02828652]
[1737733765358,14.45723511,262.94,262.7,14.45723511]
[1737733766465,0.02484786,262.85,262.79,0.02417327]
[1737733770071,0.02484786,262.85,262.84,3.804]
[1737733770569,0.02484786,262.85,262.79,0.02417327]
[1737733771071,0.02484786,262.85,262.84,3.804]
[1737733775075,3.8028,262.93,262.89,3.8033]
[1737733775279,14.45723511,262.99,262.83,9.36]
[1737733776071,3.8024,262.95,262.88,0.02860211]
[1737733776481,14.45723511,262.99,262.88,0.02860211]
[1737733777376,3.803,262.91,262.88,0.02860211]
[1737733777974,14.45723511,262.99,262.88,3.83190211]
[1737733778275,14.45723511,262.99,262.88,0.02860211]
[1737733778478,14.45723511,262.94,262.83,9.36]
[1737733779380,3.8033,262.9,262.83,9.36]
[1737733779582,3.8033,262.9,262.86,0.02797916]
[1737733779978,0.02576345,262.91,262.86,3.83157916]
[1737733780484,0.02576345,262.91,262.86,0.02797916]
[1737733780680,3.8032,262.9,262.86,0.02797916]
[1737733780888,0.02576345,262.91,262.86,0.02797916]
[1737733781289,3.804,262.84,262.83,9.30680304]
[1737733781686,3.48,262.87,262.83,9.30680304]
[1737733781882,3.804,262.84,262.83,9.30680304]
[1737733782084,14.45723511,262.84,262.67,1.2703]
[1737733782589,0.02747572,262.78,262.73,0.02500173]
[1737733782787,0.02747572,262.78,262.76,3.8051]
[1737733783682,0.02747572,262.78,262.75,2.79]
[1737733784688,0.02747572,262.78,262.76,3.8051]
[1737733785895,0.02747572,262.78,262.75,6.5952]
[1737733786092,0.02747572,262.78,262.75,2.79]
[1737733786493,3.48,262.93,262.75,2.79]
[1737733786691,3.48,262.93,262.75,17.24723511]
[1737733786990,7.69396101,262.98,262.75,17.24723511]
[1737733787387,14.45723511,262.99,262.91,3.8028]
[1737733787795,3.8017,263.0,262.84,0.02770662]
[1737733787986,0.02758744,262.98,262.93,3.8027]
[1737733788388,0.02758744,262.98,262.89,0.02848177]
[1737733789891,0.02758744,262.98,262.96,3.8022]
[1737733790292,0.02758744,262.98,262.85,14.45723511]
[1737733790293,18.47935678,263.11,262.94,0.02741476]
[1737733790493,14.45723511,263.17,262.94,0.02741476]
[1737733790795,14.45723511,263.17,262.93,1.2376]
[1737733790991,3.8,263.12,263.04,3.8011]
[1737733791193,14.45723511,263.17,262.93,1.2376]
[1737733791392,3.7999,263.13,263.03,3.8011]
[1737733791894,3.7999,263.13,263.05,0.02860916]
[1737733792397,3.7995,263.16,263.05,0.02860916]
[1737733792597,14.67925678,263.19,263.06,3.8007]
[1737733793096,3.48,263.21,263.06,3.8007]
[1737733793396,3.48,263.21,262.97,14.45723511]
[1737733793593,3.48,263.21,263.11,0.02743822]
[1737733794095,3.7993,263.17,263.11,0.02743822]
[1737733794792,3.48,263.23,263.11,0.02743822]
[1737733794993,14.45723511,263.17,263.11,0.02743822]
[1737733795496,3.7999,263.12,263.11,0.02743822]
[1737733795995,14.45723511,263.17,263.11,0.02743822]
[1737733796190,14.45723511,263.22,263.11,0.02743822]
[1737733797097,3.7992,263.18,263.11,0.02743822]
[1737733798097,17.93723511,263.22,263.11,0.02743822]
[1737733798698,3.7999,263.13,263.11,0.02743822]
[1737733799090,3.48,263.22,263.11,0.02743822]
[1737733799294,3.7998,263.13,263.11,0.02743822]
[1737733800592,3.48,263.12,262.94,1.2573]
[1737733800796,14.45723511,263.04,262.83,1.3331]
[1737733801102,14.45723511,262.99,262.84,1.2962]
[1737733801701,0.02775201,262.94,262.89,0.02824585]
[1737733801999,17.93723511,263.12,262.89,0.02824585]
[1737733802300,14.45723511,263.01,262.83,2.5927]
[1737733803294,14.45723511,263.06,262.89,0.02749609]
[1737733803500,0.76013834,263.11,262.83,2.5927]
[1737733803501,14.45723511,263.01,262.83,2.5927]
[1737733803695,14.45723511,263.01,262.95,0.0251649]
[1737733803895,3.8014,263.03,262.95,0.0251649]
[1737733804099,0.76013834,263.11,262.83,17.04993511]
[1737733804294,0.76013834,263.11,262.95,0.02862229]
[1737733804499,3.8004,263.09,263.01,3.8015]
[1737733804704,0.76013834,263.11,263.01,3.8015]
[1737733805005,3.8004,263.09,263.0,0.02777266]
[1737733805304,0.76013834,263.11,263.0,0.02777266]
[1737733805604,14.45723511,263.12,263.0,0.02777266]
[1737733805808,18.25723511,263.12,263.04,3.8011]
[1737733806007,14.45723511,263.12,262.89,1.2976]
[1737733806202,3.8007,263.07,262.98,3.8019]
[1737733806401,3.8007,263.07,263.05,0.0251347]
[1737733806598,14.45723511,263.12,263.05,2.79]
[1737733806806,3.8007,263.07,263.05,2.79]
[1737733807310,3.8011,263.04,263.03,0.02800039]
[1737733807505,14.45723511,263.12,263.03,0.02800039]
[1737733808409,3.801,263.05,263.03,0.02800039]
[1737733808907,14.45723511,263.12,263.03,0.02800039]
[1737733809111,14.45723511,263.07,263.03,0.02800039]
[1737733809503,3.801,263.05,263.03,0.02800039]
[1737733810006,25.91723511,263.07,262.83,2.5927]
[1737733810211,14.45723511,262.97,262.83,2.5927]
[1737733810410,14.45723511,262.97,262.74,1.229]
[1737733810608,14.45723511,262.97,262.75,2.5755]
[1737733811007,0.02450273,262.89,262.83,0.02685443]
[1737733811812,3.8034,262.88,262.83,0.02685443]
[1737733812006,0.02450273,262.89,262.83,0.02685443]
[1737733813109,14.45723511,262.87,262.83,0.02685443]
[1737733813613,0.02450273,262.89,262.83,0.02685443]
[1737733814504,3.8037,262.86,262.83,0.02685443]
[1737733814711,14.45723511,262.87,262.83,0.02685443]
[1737733815814,3.8039,262.85,262.83,0.02685443]
[1737733816816,14.45723511,262.87,262.83,0.02685443]
[1737733819317,14.45723511,262.87,262.73,3.8055]
[1737733819519,14.45723511,262.81,262.62,1.266]
[1737733819814,14.45723511,262.7,262.39,281.97044174]
[1737733820119,14.45723511,262.6,262.48,2.619]
[1737733820317,14.45723511,262.6,262.52,3.8086]
[1737733820522,0.02809454,262.57,262.51,0.02594579]
[1737733820715,3.48,262.7,262.48,2.619]
[1737733820914,0.02759765,262.57,262.51,0.02828911]
[1737733821114,14.45723511,262.68,262.48,2.619]
[1737733821315,0.02691887,262.57,262.56,3.808]
[1737733821619,14.45723511,262.68,262.48,2.619]
[1737733821820,0.02794028,262.59,262.54,0.02514496]
[1737733822018,0.02794028,262.59,262.55,3.8081]
[1737733822219,0.02794028,262.59,262.54,0.02514496]
[1737733824020,14.45723511,262.57,262.45,1.06140496]
[1737733824221,14.45723511,262.57,262.34,14.45723511]
[1737733824418,14.45723511,262.52,262.35,1.2422]
[1737733825322,0.02420948,262.46,262.41,0.02428531]
[1737733826617,0.02420948,262.46,262.41,3.83448531]
[1737733827823,0.02420948,262.46,262.42,3.81]
[1737733831323,0.02420948,262.46,262.44,3.8097]
[1737733831718,14.45723511,262.55,262.41,0.02428531]
[1737733832517,14.45723511,262.55,262.5,3.8088]
[1737733832920,14.48583912,262.55,262.5,0.02407224]
[1737733833524,0.02860401,262.55,262.5,0.02407224]
[1737733834125,0.02860401,262.55,262.5,3.83287224]
[1737733834323,18.29403912,262.55,262.5,0.02407224]
[1737733834534,14.45723511,262.51,262.41,3.8102]
[1737733834724,14.45723511,262.51,262.35,1.2422]
[1737733834928,3.8097,262.45,262.35,1.2422]
[1737733835133,14.45723511,262.43,262.36,3.8109]
[1737733835329,14.45723511,262.39,262.2,14.45723511]
[1737733835529,14.45723511,262.39,262.26,1.2348]
[1737733835729,0.027923,262.35,262.32,3.8114]
[1737733835931,0.027923,262.35,262.29,0.02827431]
[1737733836127,0.027923,262.35,262.29,3.84017431]
[1737733836628,0.027923,262.35,262.29,0.02827431]
[1737733839137,0.027923,262.35,262.33,3.8114]
[1737733839438,0.027923,262.35,262.29,0.02827431]
[1737733839734,14.45723511,262.31,262.22,1.2528]
[1737733839932,14.45723511,262.31,262.17,1.2904]
[1737733840244,14.45723511,262.27,262.17,1.2904]
[1737733840634,14.45723511,262.27,262.2,3.8132]
[1737733841138,0.02698236,262.26,262.21,0.02653466]
[1737733841837,0.02698236,262.26,262.21,3.83963466]
[1737733843741,0.02698236,262.26,262.22,3.813]
[1737733844838,0.02698236,262.26,262.21,0.02653466]
[1737733845034,14.45723511,262.37,262.21,0.02653466]
[1737733845437,14.45723511,262.37,262.34,3.8112]
[1737733845839,14.45723511,262.37,262.17,1.2904]
[1737733846040,14.45723511,262.37,262.31,3.8116]
[1737733846242,14.45723511,262.37,262.17,1.2904]
[1737733846440,0.02469415,262.3,262.24,0.02904865]
[1737733847037,14.45723511,262.28,262.09,2.493]
[1737733847243,14.45723511,262.23,262.1,1.2432]
[1737733847439,14.45723511,262.23,262.12,3.8144]
[1737733847643,14.45723511,262.23,262.1,1.2432]
[1737733848244,14.45723511,262.34,262.13,0.2212]